bitfinex/quotes_ETHUSD_20260108
["timestamp","ask_amount","ask_price","bid_price","bid_amount"]
[1767916277142,4.17296197,3108.3,3107.9,1e-08]
[1767916280411,7.39018668,3108.3,3107.9,1e-08]
[1767916280842,0.95573726,3108.2,3107.9,1e-08]
[1767916281042,0.95573726,3108.0,3107.4,0.844]
[1767916281245,0.95573726,3107.8,3107.2,0.002]
[1767916281449,0.95573726,3107.8,3107.2,0.846]
[1767916282029,0.95573726,3107.8,3107.2,0.002]
[1767916283351,0.95573726,3107.6,3107.2,0.002]
[1767916284817,0.95573726,3107.6,3107.5,0.002]
[1767916285050,0.95573726,3107.6,3107.2,0.002]
[1767916285259,4.17366662,3107.6,3107.2,0.002]
[1767916286516,1.37310392,3107.5,3107.2,0.002]
[1767916286720,0.95573726,3107.5,3107.2,0.002]
[1767916287937,0.95573726,3107.4,3107.2,0.002]
[1767916288139,0.95573726,3107.4,3107.1,0.002]
[1767916288326,4.17370725,3107.6,3107.1,0.002]
[1767916288678,4.17365828,3107.6,3107.1,0.002]
[1767916288850,4.9127988,3107.6,3107.1,0.002]
[1767916291158,0.95573726,3108.0,3107.1,0.90367735]
[1767916292147,0.95573726,3107.9,3107.1,0.90367735]
[1767916293075,3.21771027,3107.8,3107.1,4.12210381]
[1767916293280,3.21771027,3107.8,3107.1,0.90367735]
[1767916293478,3.21771027,3107.8,3107.1,4.12209797]
[1767916293774,4.15320154,3107.8,3107.1,4.12209797]
[1767916293973,4.89027532,3107.8,3107.1,4.12209797]
[1767916294857,4.89027532,3107.8,3107.1,0.90367735]
[1767916296869,4.89027532,3107.8,3107.4,0.002]
[1767916297379,0.93549127,3108.3,3107.4,0.002]
[1767916297558,0.93549127,3108.2,3107.4,0.002]
[1767916299750,4.15283655,3108.2,3107.4,0.002]
[1767916301546,4.15283655,3108.2,3107.4,0.99456716]
[1767916301748,4.15265045,3108.4,3107.5,0.99256716]
[1767916301966,4.15265045,3108.4,3107.7,0.99256716]
[1767916302450,0.93549127,3108.3,3107.6,0.844]
[1767916303261,6.43431742,3108.4,3107.7,0.99256716]
[1767916303566,4.79618125,3108.4,3107.7,0.99256716]
[1767916303766,8.01333949,3108.4,3107.6,0.844]
[1767916303959,0.93549127,3108.3,3107.6,0.844]
[1767916304160,0.93549127,3108.3,3107.4,3.97253495]
[1767916304351,0.93549127,3108.3,3107.5,0.844]
[1767916304551,0.93549127,3108.2,3107.5,0.844]
[1767916307582,0.80133395,3108.3,3107.5,0.844]
[1767916307583,4.15289096,3108.1,3107.5,0.844]
[1767916308175,0.93549127,3108.0,3107.4,0.846]
[1767916308682,0.93549127,3107.8,3107.4,0.846]
[1767916312385,0.001,3107.9,3107.4,0.846]
[1767916312885,0.001,3107.9,3107.4,0.002]
[1767916313088,0.93649127,3107.9,3107.4,0.002]
[1767916319568,0.001,3107.9,3107.4,0.002]
[1767916320173,0.001,3107.6,3107.4,0.82952304]
[1767916320504,0.001,3107.6,3107.5,3.21802091]
[1767916322066,0.001,3107.6,3107.4,4.0476091]
[1767916323415,0.001,3107.6,3107.5,0.98668822]
[1767916324931,0.001,3107.6,3107.4,4.0476091]
[1767916325578,0.001,3107.6,3107.4,0.82952304]
[1767916325780,0.001,3107.6,3107.4,1.67352304]
[1767916326114,0.001,3107.6,3107.4,0.846]
[1767916326991,0.001,3107.6,3107.4,4.06411362]
[1767916327816,0.001,3107.6,3107.4,0.846]
[1767916328016,0.001,3107.6,3107.4,0.002]
[1767916329985,0.97912292,3107.6,3107.4,0.002]
[1767916330183,0.97912292,3107.6,3107.1,0.002]
[1767916330518,0.97812292,3107.5,3107.1,0.002]
[1767916331886,0.97812292,3107.3,3107.1,0.002]
[1767916332291,0.97912292,3107.3,3107.1,0.002]
[1767916333759,0.97912292,3107.3,3107.0,0.002]
[1767916335631,0.97812292,3107.2,3107.0,0.002]
[1767916335930,0.97812292,3106.9,3106.1,0.99569847]
[1767916336137,0.97812292,3106.9,3105.9,0.002]
[1767916336138,0.97812292,3106.9,3105.9,0.99769847]
[1767916336442,0.97812292,3106.9,3105.9,0.002]
[1767916337603,0.97812292,3106.9,3105.9,3.22166705]
[1767916337807,0.97812292,3106.9,3105.9,3.22163057]
[1767916338004,0.97812292,3106.6,3105.9,0.002]
[1767916338318,1.71964297,3106.8,3105.9,0.99769847]
[1767916338499,0.97812292,3106.8,3105.9,0.99769847]
[1767916338940,3.21862475,3107.0,3105.9,0.99769847]
[1767916338941,0.97812292,3107.0,3106.1,0.99569847]
[1767916339995,0.97812292,3107.0,3106.3,0.99569847]
[1767916340196,0.97812292,3107.0,3106.4,0.74344339]
[1767916340396,0.97812292,3107.2,3106.5,0.99569847]
[1767916340612,0.001,3107.3,3106.5,0.99569847]
[1767916340812,0.001,3107.3,3106.6,0.99569847]
[1767916341710,0.97912292,3107.3,3106.6,0.99569847]
[1767916342233,0.97912292,3107.3,3106.7,3.21884958]
[1767916342596,0.97912292,3107.3,3106.6,3.21890301]
[1767916342818,0.97912292,3107.3,3106.6,4.12112101]
[1767916343497,0.97912292,3107.3,3106.6,7.3400742]
[1767916343995,0.97912292,3107.3,3106.6,4.12112101]
[1767916344196,0.001,3107.0,3106.6,4.12112101]
[1767916345230,0.001,3107.0,3106.6,7.3400742]
[1767916345400,0.001,3107.0,3106.7,0.81850742]
[1767916346226,0.001,3107.0,3106.7,4.03730839]
[1767916346432,0.001,3107.0,3106.7,3.21880097]
[1767916347025,0.001,3107.0,3106.6,3.21889773]
[1767916347303,0.001,3107.0,3106.7,3.21881389]
[1767916348402,0.001,3107.0,3106.6,3.21895319]
[1767916348782,0.001,3107.0,3106.6,3.94725321]
[1767916350735,0.001,3107.0,3106.6,3.21895319]
[1767916350736,0.97912292,3107.0,3106.6,3.21895319]
[1767916351402,0.97912292,3107.0,3106.5,3.21901379]
[1767916351804,0.97912292,3107.0,3106.2,0.09345041]
[1767916351805,0.97912292,3107.0,3106.3,3.21922971]
[1767916352158,0.97912292,3107.0,3106.4,3.21912993]
[1767916352320,0.97912292,3107.0,3106.1,0.845]
[1767916352321,0.97912292,3107.0,3106.3,3.21924869]
[1767916352531,0.97912292,3107.0,3106.5,3.21905332]
[1767916352838,0.90874602,3106.9,3106.5,3.21905332]
[1767916353009,0.90874602,3106.9,3106.2,6.43873542]
[1767916360422,0.90874602,3106.9,3106.2,3.21936771]
[1767916360845,0.90874602,3106.9,3106.2,6.43873542]
[1767916361353,0.90874602,3106.9,3106.2,3.21936771]
[1767916363832,4.1274094,3106.9,3106.1,4.06442672]
[1767916363988,0.90874602,3106.7,3105.9,0.002]
[1767916364855,0.90874602,3106.5,3105.9,0.002]
[1767916373265,0.90874602,3106.4,3105.9,0.002]
[1767916374183,0.90874602,3106.4,3105.3,3.22029708]
[1767916374184,0.90874602,3106.3,3105.3,3.22029708]
[1767916374376,0.90874602,3106.3,3105.2,3.32747802]
[1767916374592,0.845,3106.4,3105.2,3.32747802]
[1767916374593,0.90874602,3106.1,3105.2,3.32747802]
[1767916374764,0.90874602,3106.1,3105.3,3.22028408]
[1767916374966,0.90874602,3106.1,3105.2,0.10712141]
[1767916375178,0.90874602,3106.1,3105.3,3.22030077]
[1767916375595,0.90874602,3106.1,3105.3,4.1645132]
[1767916375795,0.90874602,3106.5,3105.4,0.94421243]
[1767916375995,0.90874602,3106.5,3105.7,0.94421243]
[1767916376297,0.90874602,3106.5,3105.7,1.78921243]
[1767916376618,0.001,3106.6,3105.8,1.03766284]
[1767916376825,0.001,3106.6,3105.9,0.94421243]
[1767916376981,0.001,3106.6,3106.0,3.21957501]
[1767916377182,0.90974602,3106.6,3106.0,3.21957501]
[1767916379281,0.90974602,3106.6,3105.9,6.43931452]
[1767916380416,0.90974602,3106.6,3106.0,0.845]
[1767916380789,0.90974602,3106.6,3105.9,6.43931452]
[1767916380790,0.90974602,3106.6,3105.9,5.00884828]
[1767916381112,0.90974602,3106.6,3105.9,4.06463585]
[1767916381489,0.90874602,3106.5,3105.9,3.21963585]
[1767916381690,0.90874602,3106.5,3105.9,4.06463585]
[1767916383321,0.90874602,3106.5,3105.9,3.21966159]
[1767916383516,0.90874602,3106.5,3105.7,1.76005589]
[1767916383821,0.90874602,3106.5,3105.8,0.91505589]
[1767916384813,0.001,3106.6,3105.8,1.10060652]
[1767916385019,0.001,3106.6,3105.9,0.91505589]
[1767916385631,0.001,3106.6,3106.0,6.43915002]
[1767916386139,0.90382958,3106.6,3106.0,6.43915002]
[1767916386393,0.001,3106.6,3106.1,0.91505589]
[1767916386538,0.90382958,3107.0,3106.3,0.91505589]
[1767916387044,0.90382958,3107.0,3106.2,1.58976563]
[1767916388145,0.90382958,3107.0,3106.3,3.21926407]
[1767916388345,0.90382958,3107.0,3106.3,6.43852814]
[1767916389038,0.90382958,3107.0,3106.3,3.21926407]
[1767916389415,0.90382958,3107.0,3106.3,4.06426407]
[1767916389734,0.97779527,3106.9,3106.3,3.21926407]
[1767916390850,0.97779527,3106.9,3106.1,7.28394272]
[1767916391158,0.97779527,3106.9,3106.6,0.002]
[1767916391446,0.41323359,3107.0,3106.6,0.002]
[1767916391447,0.001,3106.7,3106.6,0.002]
[1767916392819,0.97879527,3106.7,3106.6,0.002]
[1767916399157,0.001,3106.7,3106.6,0.002]
[1767916403554,0.97879527,3106.7,3106.6,0.002]
[1767916406456,1.39854986,3106.7,3106.6,0.002]
[1767916406658,0.97779527,3106.6,3106.3,0.002]
[1767916408159,1.39854986,3106.7,3106.3,0.002]
[1767916408324,0.97779527,3106.6,3106.3,0.002]
[1767916413985,0.96860456,3106.5,3106.3,0.002]
[1767916414265,0.96979624,3106.3,3105.6,0.847]
[1767916414639,0.96979624,3106.3,3105.7,3.2198683]
[1767916414947,0.96979624,3106.3,3105.6,3.22194655]
[1767916415539,0.96860456,3106.2,3105.6,3.22194655]
[1767916415767,0.96860456,3106.1,3105.6,3.22194655]
[1767916419254,0.96860456,3106.1,3105.6,0.002]
[1767916419469,0.96979624,3106.3,3105.6,0.002]
[1767916419772,0.96860456,3106.2,3105.6,0.002]
[1767916420471,0.96860456,3106.2,3105.6,0.09545041]
[1767916420681,0.96860456,3106.6,3105.8,1.01115784]
[1767916420862,0.96860456,3106.6,3105.9,1.76270743]
[1767916421257,0.96860456,3106.6,3106.0,3.21957501]
[1767916421637,0.96860456,3106.8,3106.0,7.35685745]
[1767916421838,0.96960456,3106.7,3106.0,7.35685745]
[1767916422036,0.96960456,3106.7,3106.1,0.82018575]
[1767916422235,0.001,3106.7,3106.1,1.73789318]
[1767916422470,0.96960456,3106.7,3106.1,0.82018575]
[1767916422659,0.001,3106.7,3106.2,0.91770743]
[1767916422836,0.001,3106.7,3106.1,0.82018575]
[1767916423060,0.001,3106.7,3106.2,1.64364101]
[1767916423373,0.001,3106.7,3106.3,4.1369715]
[1767916423978,0.001,3106.7,3106.3,3.21926407]
[1767916424166,0.001,3106.7,3106.3,4.1369715]
[1767916424979,0.001,3106.7,3106.3,3.21926407]
[1767916425168,0.001,3106.7,3106.3,4.02749111]
[1767916427687,0.001,3106.4,3106.3,4.02749111]
[1767916428799,0.001,3106.4,3106.3,0.80822704]
[1767916429365,0.001,3106.4,3106.3,4.02749111]
[1767916429797,0.001,3106.4,3106.3,4.94519854]
[1767916433604,0.001,3106.4,3106.3,1.72593447]
[1767916434273,0.001,3106.4,3106.3,4.94519854]
[1767916434701,0.001,3106.4,3106.3,1.72593447]
[1767916436698,0.001,3106.4,3106.2,3.21931803]
[1767916436699,0.001,3106.4,3105.9,0.91970743]
[1767916436881,0.001,3106.4,3106.2,3.21931391]
[1767916437198,0.001,3106.4,3106.3,3.21926407]
[1767916438079,0.001,3106.4,3106.2,4.13702165]
[1767916439198,0.001,3106.4,3106.2,3.21931422]
[1767916439502,0.001,3106.4,3106.1,3.21942221]
[1767916439701,0.001,3106.4,3106.1,4.03978894]
[1767916440902,0.001,3106.4,3106.1,3.21942221]
[1767916441503,0.001,3106.4,3106.0,3.21957501]
[1767916442404,0.001,3106.4,3106.0,4.06457501]
[1767916444997,0.92443695,3106.4,3106.0,3.21957501]
[1767916445371,0.001,3106.4,3106.0,3.948198]
[1767916450881,0.924195,3106.4,3106.0,3.948198]
[1767916452111,0.924195,3106.4,3105.9,0.002]
[1767916452808,0.924195,3106.4,3106.3,0.002]
[1767916456396,0.924195,3106.4,3106.0,0.002]
[1767916458219,0.923195,3106.3,3106.0,0.002]
[1767916458516,0.923195,3106.3,3105.6,0.002]
[1767916458705,6.43939112,3106.4,3105.6,0.002]
[1767916458706,0.923195,3106.1,3105.6,0.002]
[1767916459608,0.923195,3106.0,3105.6,0.002]
[1767916463324,0.923195,3105.9,3105.6,0.002]
[1767916466198,3.21959446,3106.0,3105.6,0.002]
[1767916466505,4.14278946,3106.0,3105.6,0.002]
[1767916466711,0.41427895,3105.9,3105.6,0.002]
[1767916467319,0.923195,3106.0,3105.6,0.002]
[1767916469228,4.1427808,3106.0,3105.6,0.002]
[1767916470304,0.923195,3105.9,3105.6,0.002]
[1767916473335,0.92119501,3105.9,3105.6,0.002]
[1767916474835,4.14089481,3105.9,3105.6,0.002]
[1767916475035,0.92119501,3105.9,3105.6,0.002]
[1767916475542,4.14088207,3105.9,3105.6,0.002]
[1767916475840,0.92119501,3105.9,3105.6,0.002]
[1767916476033,4.14088077,3105.9,3105.6,0.002]
[1767916476531,0.95697471,3105.8,3105.3,0.002]
[1767916476933,4.17685626,3105.8,3105.3,0.002]
[1767916477129,1.28167301,3105.9,3105.3,0.002]
[1767916477534,0.95697471,3105.9,3105.3,0.002]
[1767916477734,0.95697471,3105.8,3105.3,0.002]
[1767916479219,0.95697471,3105.7,3105.3,0.002]
[1767916479751,0.95497472,3105.7,3105.3,0.002]
[1767916480122,0.95697471,3105.5,3105.3,0.002]
[1767916482221,0.73946691,3105.6,3105.3,0.002]
[1767916482424,3.9594618,3105.6,3105.3,0.002]
[1767916482823,1.69644162,3105.6,3105.3,0.002]
[1767916484852,0.73946691,3105.6,3105.3,0.002]
[1767916485848,4.17691248,3105.7,3105.3,0.002]
[1767916486554,0.845,3105.9,3105.3,0.002]
[1767916486919,3.21958466,3106.0,3105.3,0.93303865]
[1767916487121,0.95697471,3105.9,3105.3,0.002]
[1767916488747,0.95697471,3105.8,3105.3,0.002]
[1767916488936,1.69660321,3105.8,3105.3,0.002]
[1767916489535,0.95697471,3105.7,3105.3,0.002]
[1767916490639,0.95697471,3105.7,3105.6,0.002]
[1767916490826,0.001,3105.6,3105.3,0.002]
[1767916495533,0.001,3105.6,3105.3,0.93303865]
[1767916497967,0.001,3105.6,3105.3,0.002]
[1767916502779,0.41747287,3105.6,3105.3,0.002]
[1767916505779,0.94392395,3105.5,3105.3,0.002]
[1767916506078,0.41747287,3105.6,3105.3,0.002]
[1767916507188,0.52734072,3106.9,3105.3,0.002]
[1767916507189,0.001,3107.0,3106.0,1.10041125]
[1767916507378,0.001,3107.0,3106.4,0.93289361]
[1767916508166,0.001,3107.0,3106.5,0.93289361]
[1767916511164,0.001,3107.0,3106.5,0.82155166]
[1767916511501,0.001,3107.0,3106.3,4.15208941]
[1767916511701,0.001,3107.0,3106.3,4.97374366]
[1767916512205,0.001,3107.0,3106.4,3.21913779]
[1767916517065,0.001,3107.0,3106.4,4.1520314]
[1767916517265,0.001,3107.0,3106.5,0.93289361]
[1767916518007,0.001,3107.0,3106.3,4.97379612]
[1767916518177,0.99872828,3106.9,3106.3,0.82165425]
[1767916518379,0.99972828,3106.7,3105.8,3.32638119]
[1767916518582,0.99872828,3106.6,3105.8,3.32638119]
[1767916519089,0.99872828,3106.6,3105.8,4.2592748]
[1767916519811,0.9947283,3106.6,3105.8,4.2592748]
[1767916522384,0.9947283,3106.6,3105.8,7.47905714]
[1767916523312,1.41618033,3106.6,3105.8,7.47905714]
[1767916523504,0.97110944,3106.5,3105.8,7.47905714]
[1767916524314,0.99972828,3106.7,3105.9,0.93289361]
[1767916524894,0.001,3106.7,3105.9,0.93289361]
[1767916525616,0.001,3106.7,3106.1,0.93289361]
[1767916525805,0.001,3106.7,3106.2,0.93289361]
[1767916527479,0.001,3106.7,3106.3,3.21926407]
[1767916528186,0.001,3106.7,3106.3,4.15215768]
[1767916528397,0.001,3106.7,3106.4,0.93289361]
[1767916530816,0.001,3106.7,3106.4,4.15201391]
[1767916536727,0.001,3106.7,3106.4,3.2191203]
[1767916538604,0.001,3106.7,3106.3,4.13992909]
[1767916539121,0.001,3107.0,3106.7,0.9207142]
[1767916540020,0.001,3107.0,3106.6,3.21889195]
[1767916540395,0.001,3107.0,3106.5,3.21903619]
[1767916540734,0.9791556,3107.0,3106.4,3.21910743]
[1767916541225,0.9791556,3107.0,3106.4,3.21908347]
[1767916542096,0.9791556,3107.0,3106.1,6.44094272]
[1767916542330,0.9791556,3107.0,3106.2,1.14262003]
[1767916542531,0.9791556,3107.0,3106.2,2.06333423]
[1767916543099,0.9791556,3107.0,3106.2,1.14262003]
[1767916543312,0.9791556,3107.0,3106.1,7.36165692]
[1767916545232,0.9781556,3106.9,3106.1,4.14218556]
[1767916546909,0.9781556,3106.9,3106.1,7.36165692]
[1767916547106,0.9781556,3106.9,3106.1,4.14218556]
[1767916547449,0.9781556,3106.9,3106.1,7.36165692]
[1767916547630,0.9781556,3106.9,3106.1,4.14218556]
[1767916547839,0.9781556,3106.8,3106.1,4.14218556]
[1767916549155,1.39793704,3106.8,3106.1,4.14218556]
[1767916551146,1.39793704,3106.8,3106.4,0.002]
[1767916551459,0.001,3106.5,3106.4,0.002]
[1767916553952,1.38098832,3106.8,3106.4,0.002]
[1767916554326,4.59974878,3106.8,3106.4,0.002]
[1767916554624,0.45997488,3106.7,3106.4,0.002]
[1767916558155,1.43813048,3106.7,3106.4,0.002]
[1767916559262,0.9781556,3106.6,3106.4,0.002]
[1767916560464,0.9781556,3106.5,3106.4,0.002]
[1767916560961,0.9781556,3106.5,3106.1,0.002]
[1767916561570,0.9781556,3106.4,3106.1,0.002]
[1767916562870,0.9781556,3106.4,3106.0,0.002]
[1767916563079,0.9781556,3106.4,3105.8,0.002]
[1767916564363,0.91119234,3106.3,3105.8,0.002]
[1767916564744,0.91119234,3106.3,3106.0,0.002]
[1767916565858,4.13030077,3106.5,3106.0,0.002]
[1767916566056,0.91119234,3106.3,3106.0,0.002]
[1767916568151,5.01257785,3106.5,3106.0,0.002]
[1767916568364,0.94848058,3106.4,3106.0,0.002]
[1767916569080,5.01257785,3106.5,3105.6,0.99431833]
[1767916569266,1.67680003,3106.4,3105.6,0.99431833]
[1767916569467,0.94848058,3106.3,3105.6,0.99431833]
[1767916570178,0.72831945,3106.4,3105.6,0.99431833]
[1767916571684,4.8960234,3106.4,3105.6,4.21428151]
[1767916571851,0.89601207,3106.3,3105.6,4.21428151]
[1767916572448,0.94848058,3106.2,3105.6,0.002]
[1767916573555,0.89601207,3106.3,3105.6,4.21429727]
[1767916573886,1.84449265,3106.3,3105.6,4.21429727]
[1767916574126,0.94848058,3106.2,3105.6,0.002]
[1767916574252,1.45485894,3106.2,3105.6,0.002]
[1767916575863,3.72579177,3106.2,3105.6,0.99431833]
[1767916576349,4.67427235,3106.2,3105.6,0.002]
[1767916576554,0.94848058,3106.1,3105.9,0.002]
[1767916576885,0.001,3106.0,3105.9,0.002]
[1767916584106,0.94948058,3106.0,3105.9,0.002]
[1767916584292,1.41700508,3106.0,3105.6,0.002]
[1767916584492,4.63661657,3106.0,3105.3,3.20978301]
[1767916584800,4.63661657,3106.0,3105.3,0.99231833]
[1767916585611,3.68813599,3106.0,3105.3,0.99231833]
[1767916586617,3.68813599,3106.0,3105.3,4.21261713]
[1767916587106,3.22061149,3106.0,3105.3,4.21261713]
[1767916588585,3.22061149,3106.0,3105.6,0.002]
[1767916590914,0.94848058,3105.9,3105.6,0.002]
[1767916592993,0.99835116,3105.7,3105.3,0.002]
[1767916595025,4.21824355,3105.7,3105.3,0.002]
[1767916595219,0.99835116,3105.6,3105.3,0.002]
[1767916596324,3.21989239,3105.7,3105.3,0.002]
[1767916597829,4.21818052,3105.8,3105.3,0.002]
[1767916599197,0.99835116,3105.7,3105.3,0.002]
[1767916600729,0.846,3106.0,3105.3,0.96611613]
[1767916600916,0.001,3106.0,3105.6,0.002]
[1767916601116,0.40755317,3106.0,3105.6,0.002]
[1767916602233,0.001,3106.0,3105.6,0.002]
[1767916605225,0.001,3106.0,3105.6,0.96611613]
[1767916606932,0.001,3106.0,3105.8,0.96411613]
[1767916608736,0.99835116,3106.8,3105.7,6.43977202]
[1767916610453,10.52370526,3106.9,3106.0,0.96411613]
[1767916610624,0.845,3106.9,3106.1,0.96411613]
[1767916612616,0.001,3106.6,3106.2,3.21936771]
[1767916612934,0.001,3106.6,3106.2,4.18348384]
[1767916615154,0.001,3106.6,3106.3,0.96411613]
[1767916617150,0.001,3106.6,3106.3,4.18333487]
[1767916618578,0.001,3106.6,3106.3,8.14287697]
[1767916618744,0.001,3106.6,3106.4,0.96411613]
[1767916619121,0.001,3106.6,3106.5,3.21905681]
[1767916620348,0.99935116,3106.6,3106.3,3.95950718]
[1767916620551,0.99535118,3106.6,3106.4,3.21912344]
[1767916620827,0.99335119,3106.6,3106.4,3.93699868]
[1767916621161,0.91941907,3106.6,3106.4,3.21912344]
[1767916621325,0.99835116,3106.7,3106.1,6.43894272]
[1767916624266,0.001,3106.6,3106.1,6.43894272]
[1767916624564,0.001,3106.6,3106.1,7.40051121]
[1767916625156,0.001,3106.6,3106.2,0.96156849]
[1767916625357,0.001,3106.6,3106.4,0.96156849]
[1767916626360,0.001,3106.6,3106.5,0.96156849]
[1767916629047,0.001,3106.6,3106.5,4.1806253]
[1767916631277,0.001,3106.6,3106.5,0.96156849]
[1767916631443,0.001,3106.6,3106.5,4.1806253]
[1767916633290,0.001,3106.6,3106.5,4.99460832]
[1767916634741,0.001,3107.0,3106.7,4.14889978]
[1767916635074,0.001,3107.0,3106.8,0.9300502]
[1767916636955,0.001,3107.0,3106.8,4.14871683]
[1767916637160,0.001,3107.0,3106.8,4.88547347]
[1767916640079,0.001,3107.0,3106.5,0.81398302]
[1767916640246,0.93922125,3107.0,3106.5,3.21900273]
[1767916640557,0.001,3107.0,3106.6,3.21895301]
[1767916642250,0.001,3107.0,3106.5,3.21905681]
[1767916644580,0.001,3107.0,3106.5,4.14910701]
[1767916644788,0.001,3107.0,3106.6,0.73682598]
[1767916645784,0.001,3107.0,3106.6,0.72984663]
[1767916646086,0.001,3107.0,3106.5,4.14910701]
[1767916647184,0.001,3106.7,3106.5,4.14910701]
[1767916647685,0.001,3106.7,3106.5,3.21905681]
[1767916647865,0.93922125,3106.7,3106.5,3.21905681]
[1767916648061,0.001,3106.7,3106.5,3.21905681]
[1767916648467,0.001,3106.7,3106.5,7.16643458]
[1767916649863,0.001,3106.7,3106.5,3.94737777]
[1767916651183,0.93922125,3106.7,3106.5,3.94737777]
[1767916651363,0.93922125,3106.7,3106.5,3.21905681]
[1767916651679,0.001,3107.0,3106.5,3.21905681]
[1767916651879,0.55305453,3106.9,3106.5,3.21905681]
[1767916652988,0.001,3107.0,3106.5,4.16797755]
[1767916657895,0.001,3107.0,3106.8,0.94892074]
[1767916658401,0.001,3107.0,3106.6,0.94892074]
[1767916658708,0.001,3107.0,3106.5,3.21900805]
[1767916659095,0.001,3107.0,3106.5,4.16792879]
[1767916659266,0.001,3106.7,3106.5,4.16792879]
[1767916659467,0.001,3106.7,3106.5,4.9911404]
[1767916661663,0.001,3106.7,3106.5,1.77213235]
[1767916661866,0.001,3106.7,3106.5,4.99117619]
[1767916664008,0.001,3106.7,3106.6,0.94892074]
[1767916664310,0.001,3107.0,3106.7,0.94892074]
[1767916666775,0.001,3107.0,3106.7,4.16768047]
[1767916667674,0.001,3107.0,3106.3,0.845]
[1767916667675,0.001,3107.0,3106.4,4.16805174]
[1767916667875,0.001,3107.0,3106.4,4.16802771]
[1767916668405,0.001,3107.0,3106.4,4.99125591]
[1767916669492,0.001,3107.0,3106.5,0.94892074]
[1767916670819,0.001,3107.0,3106.7,0.002]
[1767916673494,0.001,3107.0,3106.7,0.95092074]
[1767916675620,0.001,3107.0,3106.7,0.94638515]
[1767916679320,0.001,3107.0,3106.8,0.94892074]
[1767916679526,0.001,3107.0,3106.9,0.94892074]
[1767916680307,0.001,3107.0,3106.8,3.95739644]
[1767916680626,0.001,3107.0,3106.8,0.73866157]
[1767916680824,0.001,3107.0,3106.7,4.16771393]
[1767916681394,0.001,3107.0,3106.7,3.21879319]
[1767916682823,0.001,3107.0,3106.7,4.18869536]
[1767916684631,0.001,3107.0,3106.8,0.96990217]
[1767916686751,0.001,3107.0,3106.9,0.96990217]
[1767916688027,0.001,3107.3,3106.9,0.41885731]
[1767916688224,0.001,3107.3,3106.8,0.96990217]
[1767916689835,0.001,3107.3,3106.8,4.18864804]
[1767916690522,0.001,3107.3,3106.9,0.96990217]
[1767916695741,0.001,3107.0,3106.9,0.96990217]
[1767916696254,0.001,3107.0,3106.7,0.9864407]
[1767916699649,0.001,3107.0,3106.7,4.20528153]
[1767916699859,0.001,3107.0,3106.7,0.9864407]
[1767916700526,0.001,3107.0,3106.5,4.20543566]
[1767916700927,0.001,3107.0,3106.6,0.9864407]
[1767916701755,0.001,3107.0,3106.6,4.20539298]
[1767916705852,0.001,3107.0,3106.6,4.20244154]
[1767916706267,0.55954156,3107.0,3106.4,0.002]
[1767916707280,0.55954156,3107.0,3106.9,0.002]
[1767916707482,0.55954156,3107.0,3106.4,0.002]
[1767916707677,3.77718393,3106.9,3106.5,0.002]
[1767916707871,0.37781839,3106.8,3106.5,0.002]
[1767916708765,3.59657695,3106.8,3106.5,0.002]
[1767916711557,0.37781839,3106.8,3106.5,0.002]
[1767916711771,0.55854156,3106.9,3106.5,0.002]
[1767916712490,0.001,3107.3,3106.8,0.98720623]
[1767916713558,0.001,3107.3,3106.9,0.98720623]
[1767916716301,0.001,3107.3,3105.8,12.231528]
[1767916716302,0.55854156,3106.9,3105.8,12.231528]
[1767916716601,0.55854156,3106.2,3105.6,0.002]
[1767916716836,0.55854156,3106.0,3105.3,0.002]
[1767916716966,0.56719773,3105.8,3105.3,0.002]
[1767916717367,0.845,3105.7,3105.3,0.002]
[1767916719715,3.21907506,3106.5,3105.5,0.98720623]
[1767916720014,3.21907506,3106.5,3105.3,0.002]
[1767916720015,3.21707506,3106.5,3105.8,0.98720623]
[1767916720214,4.00082431,3106.5,3105.9,2.33081918]
[1767916720507,0.55654156,3106.4,3105.6,0.002]
[1767916720704,0.55654156,3106.4,3105.6,4.20918504]
[1767916721583,0.55654156,3106.4,3105.7,0.98720623]
[1767916722105,0.55654156,3106.4,3105.7,4.20708966]
[1767916722409,0.55654156,3106.4,3105.7,0.98720623]
[1767916722607,4.63805996,3106.4,3105.7,0.98720623]
[1767916723397,0.55654156,3106.3,3105.6,0.002]
[1767916723914,0.55654156,3106.3,3105.6,0.98920623]
[1767916724080,4.0815184,3106.4,3105.6,0.98920623]
[1767916724908,4.0815184,3106.4,3105.7,0.98720623]
[1767916725285,0.7,3106.1,3105.7,0.98720623]
[1767916727820,0.7,3106.1,3105.7,4.2070559]
[1767916728017,0.7,3106.1,3105.8,0.98720623]
[1767916728723,0.66156201,3106.1,3105.8,0.98720623]
[1767916729022,0.845,3106.7,3106.1,0.06824591]
[1767916729188,1.40154156,3106.7,3106.1,0.06824591]
[1767916729607,0.55654156,3106.6,3106.1,0.06824591]
[1767916733818,4.063867,3106.7,3106.1,0.06824591]
[1767916733819,7.28276723,3106.7,3106.1,0.06824591]
[1767916734018,8.06669811,3106.7,3106.1,0.06824591]
[1767916734221,0.55654156,3106.6,3106.1,0.06824591]
[1767916735908,3.7492932,3106.6,3106.1,0.06824591]
[1767916738842,4.84782029,3106.7,3106.1,0.06824591]
[1767916740134,4.84782029,3106.7,3106.1,1.05545214]
[1767916740327,4.06388941,3106.7,3106.2,0.98720623]
[1767916741593,7.28277882,3106.7,3106.2,0.98720623]
[1767916741839,0.53026488,3106.6,3106.1,0.06824591]
[1767916742015,0.53026488,3106.6,3105.8,0.98720623]
[1767916742211,0.53026488,3106.5,3105.8,0.98720623]
[1767916742598,0.53026488,3106.5,3105.6,0.99443819]
[1767916743182,3.21916044,3106.4,3105.7,0.99243819]
[1767916743329,3.21910272,3106.5,3105.7,0.99243819]
[1767916743958,3.2189789,3106.6,3105.7,0.99243819]
[1767916744139,0.001,3106.4,3105.9,0.99243819]